bitfinex/quotes_BTCUSD_20250224
["timestamp","ask_amount","ask_price","bid_price","bid_amount"]
[1740408121378,0.75153791,95501.0,95500.0,5.31659498]
[1740408121639,0.6406391,95501.0,95500.0,5.31659498]
[1740408121902,0.7977051,95501.0,95500.0,5.31659498]
[1740408122844,0.8791051,95501.0,95500.0,5.31659498]
[1740408123308,0.56657391,95501.0,95500.0,5.31659498]
[1740408123479,0.31373791,95501.0,95500.0,5.33113583]
[1740408123735,0.46409991,95501.0,95500.0,5.33113583]
[1740408124161,0.62433991,95501.0,95500.0,5.31659498]
[1740408124378,0.6867739,95501.0,95500.0,5.31659498]
[1740408124809,0.6797739,95501.0,95500.0,5.31659498]
[1740408125762,0.61109991,95501.0,95500.0,5.31659498]
[1740408126042,0.61609991,95501.0,95500.0,5.31659498]
[1740408127071,0.61109991,95501.0,95500.0,5.31659498]
[1740408127357,0.60709991,95501.0,95500.0,5.31659498]
[1740408127567,0.61009991,95501.0,95500.0,5.31744488]
[1740408127771,0.6721379,95501.0,95500.0,5.31744488]
[1740408128416,0.7616179,95501.0,95500.0,5.31744488]
[1740408128632,0.6142559,95501.0,95500.0,5.31744488]
[1740408128854,4.0992149,95501.0,95500.0,5.31744488]
[1740408129066,3.94469691,95501.0,95500.0,5.31744488]
[1740408129278,1.23087391,95501.0,95500.0,5.31744488]
[1740408129514,1.38793991,95501.0,95500.0,5.31744488]
[1740408129750,1.38793991,95501.0,95500.0,5.27021375]
[1740408129960,1.4855856,95501.0,95500.0,5.27021375]
[1740408130186,1.4895856,95501.0,95500.0,5.27021375]
[1740408130627,1.4945856,95501.0,95500.0,5.27021375]
[1740408131267,1.48758544,95501.0,95500.0,5.27021375]
[1740408131479,1.49690544,95501.0,95500.0,5.27021375]
[1740408132146,1.51690544,95501.0,95500.0,5.27021375]
[1740408132579,1.50990544,95501.0,95500.0,5.27021375]
[1740408132792,1.51690544,95501.0,95500.0,5.27021375]
[1740408133018,1.51690544,95501.0,95500.0,5.23741097]
[1740408133277,1.07687375,95501.0,95500.0,5.23741097]
[1740408133494,1.07687375,95501.0,95500.0,5.23417141]
[1740408133495,1.08023375,95501.0,95500.0,5.23417141]
[1740408133726,1.28429975,95501.0,95500.0,5.18599331]
[1740408133935,1.28429975,95501.0,95500.0,5.12970889]
[1740408133936,1.51529975,95501.0,95500.0,5.12970889]
[1740408134147,1.61794544,95501.0,95500.0,5.12970889]
[1740408134367,1.61294544,95501.0,95500.0,5.12438874]
[1740408134643,1.6166656,95501.0,95500.0,5.12438874]
[1740408134864,1.6026656,95501.0,95500.0,5.02417715]
[1740408135119,1.6484656,95501.0,95500.0,5.02417715]
[1740408135337,0.9066096,95501.0,95500.0,4.93938707]
[1740408135774,4.5342496,95501.0,95500.0,4.93938707]
[1740408136000,4.30626251,95501.0,95500.0,4.93938707]
[1740408136213,4.04853251,95501.0,95500.0,4.93938707]
[1740408136428,4.06853251,95501.0,95500.0,4.93938707]
[1740408136620,0.89382251,95501.0,95500.0,4.93938707]
[1740408137320,0.89382251,95501.0,95500.0,4.32371612]
[1740408137987,0.88010661,95501.0,95500.0,3.49210712]
[1740408138482,0.86610661,95501.0,95500.0,3.49210712]
[1740408138725,0.97630661,95501.0,95500.0,3.49210712]
[1740408138946,2.11930499,95501.0,95500.0,0.57067329]
[1740408139159,2.11930499,95501.0,95477.0,0.0008506]
[1740408139160,0.437304,95478.0,95477.0,0.0008506]
[1740408139382,5.546545,95478.0,95477.0,0.0008506]
[1740408139606,4.872262,95478.0,95477.0,0.0008506]
[1740408139826,4.848638,95478.0,95477.0,0.01571851]
[1740408140057,4.95548469,95478.0,95477.0,0.01571851]
[1740408140277,0.307114,95472.0,95471.0,0.0004]
[1740408140529,4.719065,95472.0,95471.0,0.0004]
[1740408140760,4.517525,95472.0,95471.0,0.0004]
[1740408141026,4.517525,95472.0,95471.0,0.52703076]
[1740408141260,4.69526123,95472.0,95471.0,0.52703076]
[1740408141465,4.69526123,95472.0,95471.0,0.10720702]
[1740408141576,4.69526123,95472.0,95471.0,0.10725023]
[1740408141788,4.70226123,95472.0,95471.0,0.10725023]
[1740408141987,4.72226123,95472.0,95471.0,0.10725023]
[1740408142197,0.307175,95435.0,95434.0,0.08269887]
[1740408142405,2.39259949,95435.0,95434.0,0.08269887]
[1740408142615,2.49893849,95435.0,95434.0,0.09136808]
[1740408142818,2.35268349,95435.0,95434.0,0.09136808]
[1740408143059,1.13161699,95435.0,95434.0,0.09136808]
[1740408143950,1.00058774,95435.0,95434.0,0.09136808]
[1740408144409,1.06469774,95435.0,95434.0,0.09136808]
[1740408144644,0.66197274,95435.0,95434.0,0.09136808]
[1740408144863,0.3259,95449.0,95434.0,0.15140893]
[1740408145089,0.158047,95448.0,95435.0,0.09831004]
[1740408145287,0.720393,95455.0,95437.0,0.00954085]
[1740408145492,0.15,95446.0,95437.0,0.00954085]
[1740408145747,0.279836,95445.0,95437.0,0.00954085]
[1740408146218,0.250285,95445.0,95437.0,0.00954085]
[1740408146467,0.007,95449.0,95439.0,0.1276]
[1740408146719,0.007,95449.0,95440.0,0.0789]
[1740408147212,0.007,95449.0,95441.0,0.0486]
[1740408147480,0.007,95449.0,95443.0,0.01454085]
[1740408147751,0.0922599,95456.0,95445.0,0.01454085]
[1740408147964,0.0922599,95456.0,95445.0,0.03121243]
[1740408148180,0.0922599,95456.0,95445.0,0.01454085]
[1740408148396,0.0922599,95456.0,95445.0,0.14166186]
[1740408148604,0.0922599,95456.0,95445.0,0.09531004]
[1740408148811,0.0922599,95456.0,95445.0,0.05489267]
[1740408149032,0.0922599,95456.0,95444.0,0.0789]
[1740408149033,0.15,95454.0,95444.0,0.0789]
[1740408149246,0.15,95450.0,95444.0,0.09007636]
[1740408149447,0.15,95448.0,95444.0,0.09007636]
[1740408149659,0.149,95446.0,95444.0,0.09007636]
[1740408149863,1.954012,95445.0,95444.0,0.09007636]
[1740408150070,2.57852,95448.0,95444.0,0.09007636]
[1740408150293,0.04753623,95447.0,95444.0,0.09007636]
[1740408150506,1.997163,95446.0,95444.0,0.01117636]
[1740408150722,0.3259,95445.0,95441.0,0.0607395]
[1740408150932,2.467255,95445.0,95441.0,0.0607395]
[1740408151141,1.931423,95444.0,95441.0,0.0607395]
[1740408151352,0.42854569,95443.0,95441.0,0.0607395]
[1740408151560,1.837448,95442.0,95441.0,0.0607395]
[1740408151972,1.987448,95442.0,95441.0,0.0607395]
[1740408152182,2.470511,95442.0,95441.0,0.0121395]
[1740408152403,1.686185,95442.0,95441.0,0.0121395]
[1740408152639,0.15,95441.0,95437.0,0.0008496]
[1740408152904,0.0104,95440.0,95437.0,0.0008496]
[1740408153137,0.30717,95438.0,95437.0,0.0008496]
[1740408153346,2.302494,95438.0,95437.0,0.0008496]
[1740408153555,2.476182,95438.0,95437.0,0.0008496]
[1740408153821,2.52371823,95438.0,95437.0,0.0008496]
[1740408154239,2.84961823,95438.0,95437.0,0.0008496]
[1740408155276,2.85361823,95438.0,95437.0,0.0008496]
[1740408155526,2.85361823,95438.0,95437.0,0.08465773]
[1740408155755,2.84961823,95438.0,95437.0,0.08465773]
[1740408156024,2.85361823,95438.0,95437.0,0.08465773]
[1740408157224,2.81192931,95438.0,95437.0,0.05183336]
[1740408157519,0.307179,95432.0,95431.0,0.01076259]
[1740408157961,3.965312,95432.0,95431.0,0.01076259]
[1740408158192,3.573287,95432.0,95431.0,0.01076259]
[1740408158429,3.84367169,95432.0,95431.0,0.01076259]
[1740408158668,3.85067169,95432.0,95431.0,0.01076259]
[1740408159370,0.75328469,95432.0,95431.0,0.01076259]
[1740408159613,4.47609969,95432.0,95431.0,0.01076259]
[1740408159852,4.41912569,95432.0,95431.0,0.01076259]
[1740408160269,3.729468,95432.0,95431.0,0.01076259]
[1740408160737,3.718908,95432.0,95431.0,0.01076259]
[1740408160944,3.729508,95432.0,95431.0,0.01076259]
[1740408161154,3.761025,95432.0,95431.0,0.01076259]
[1740408161383,3.593246,95432.0,95431.0,0.01161269]
[1740408161602,3.86367069,95432.0,95431.0,0.01161269]
[1740408161838,3.85307069,95432.0,95431.0,0.01161269]
[1740408162055,3.86371069,95432.0,95431.0,0.01161269]
[1740408162277,3.70653169,95432.0,95431.0,0.01161269]
[1740408162701,3.86371069,95432.0,95431.0,0.01161269]
[1740408164257,3.86311069,95432.0,95431.0,0.01161269]
[1740408164476,3.86211069,95432.0,95431.0,0.01161269]
[1740408164897,3.86215069,95432.0,95431.0,0.01161269]
[1740408165754,3.85147069,95432.0,95431.0,0.01161269]
[1740408165968,3.86215069,95432.0,95431.0,0.01161269]
[1740408166178,3.88215069,95432.0,95431.0,0.01161269]
[1740408166864,3.87515069,95432.0,95431.0,0.01161269]
[1740408167072,3.88215069,95432.0,95431.0,0.01161269]
[1740408167502,3.87511069,95432.0,95431.0,0.01161269]
[1740408167913,3.99231069,95432.0,95431.0,0.01161269]
[1740408168668,3.88211069,95432.0,95431.0,0.01161269]
[1740408169743,3.87511069,95432.0,95431.0,0.01161269]
[1740408169957,3.84447069,95432.0,95431.0,0.01161269]
[1740408170165,3.86211069,95432.0,95431.0,0.01161269]
[1740408170602,4.07515069,95432.0,95431.0,0.01161269]
[1740408170810,4.08215069,95432.0,95431.0,0.01161269]
[1740408171435,4.07515069,95432.0,95431.0,0.01161269]
[1740408171581,4.08215069,95432.0,95431.0,0.01161269]
[1740408171792,3.8813202,95432.0,95431.0,0.01161269]
[1740408171991,3.8920002,95432.0,95431.0,0.01057104]
[1740408172408,0.2,95420.0,95410.0,0.000204]
[1740408172730,5.436442,95419.0,95418.0,0.03589911]
[1740408172976,4.798863,95419.0,95418.0,0.03589911]
[1740408173193,4.719382,95419.0,95418.0,0.03589911]
[1740408173404,4.445152,95419.0,95418.0,0.03589911]
[1740408173608,0.157214,95411.0,95410.0,0.000204]
[1740408173839,0.483114,95411.0,95410.0,0.000204]
[1740408174032,0.483114,95411.0,95410.0,0.02349904]
[1740408174312,5.246455,95411.0,95410.0,0.02349904]
[1740408174516,4.045729,95411.0,95410.0,0.02349904]
[1740408174722,4.09385419,95411.0,95410.0,0.02349904]
[1740408174932,4.08969419,95411.0,95410.0,0.02349904]
[1740408175133,4.25093419,95411.0,95410.0,0.02349904]
[1740408176203,4.23969419,95411.0,95410.0,0.02349904]
[1740408176410,4.09380019,95411.0,95410.0,0.02349904]
[1740408176617,4.25101419,95411.0,95410.0,0.02349904]
[1740408176843,4.27451319,95411.0,95410.0,0.02349904]
[1740408177684,4.26751319,95411.0,95410.0,0.02349904]
[1740408177869,4.23181319,95411.0,95410.0,0.02349904]
[1740408178115,0.35,95400.0,95372.0,0.0465]
[1740408178333,0.15,95392.0,95364.0,0.0786]
[1740408178563,4.763341,95392.0,95359.0,0.0465]
[1740408178782,0.24889342,95392.0,95360.0,0.01234086]
[1740408178999,4.705317,95391.0,95359.0,0.0465]
[1740408179208,4.82209887,95390.0,95359.0,0.05770413]
[1740408179484,0.209669,95388.0,95359.0,0.05770413]
[1740408179673,4.573441,95387.0,95359.0,0.05770413]
[1740408179914,4.424335,95386.0,95359.0,0.05770413]
[1740408180125,4.005855,95385.0,95359.0,0.05770413]
[1740408180335,0.04859355,95389.0,95359.0,0.05770413]
[1740408180336,3.92821619,95384.0,95359.0,0.05770413]
[1740408180548,0.03696519,95384.0,95359.0,0.03405627]
[1740408180761,0.03696519,95384.0,95380.0,0.15726699]
[1740408180975,0.157264,95381.0,95380.0,0.15726699]
[1740408181191,2.87128701,95381.0,95380.0,0.1793947]
[1740408181400,1.17139701,95381.0,95380.0,0.2558947]
[1740408181612,1.134132,95381.0,95380.0,0.2558947]
[1740408181822,0.86464832,95381.0,95380.0,0.27043555]
[1740408182038,0.26705043,95383.0,95381.0,0.01999999]
[1740408182248,0.12449,95382.0,95381.0,0.01999999]
[1740408182457,0.00775293,95381.0,95380.0,0.1186277]
[1740408183089,0.00775293,95381.0,95380.0,0.13316855]
[1740408183299,0.00775293,95381.0,95380.0,0.15316855]
[1740408183511,0.00775293,95381.0,95380.0,0.2148854]
[1740408183512,0.01475293,95381.0,95380.0,0.2148854]
[1740408183734,0.01444,95415.0,95394.0,0.01454085]
[1740408183941,1.723837,95409.0,95397.0,0.01454085]
[1740408184156,1.654885,95408.0,95399.0,0.08954085]
[1740408184378,0.742785,95407.0,95401.0,0.01454085]
[1740408184595,0.24865787,95430.0,95410.0,0.03454084]
[1740408185021,0.24865787,95430.0,95400.0,0.15970919]
[1740408185022,0.24865787,95430.0,95416.0,0.01999999]
[1740408185235,1.473418,95429.0,95423.0,0.01454085]
[1740408185450,0.761455,95428.0,95423.0,0.01454085]
[1740408185662,0.570578,95429.0,95423.0,0.01454085]
[1740408185918,0.872661,95429.0,95427.0,0.01999999]
[1740408186126,0.872661,95429.0,95422.0,0.05944232]
[1740408186127,0.08744914,95428.0,95422.0,0.05944232]
[1740408186353,0.15,95427.0,95422.0,0.05944232]
[1740408186566,0.15,95423.0,95422.0,0.00984232]
[1740408186778,3.9691816,95423.0,95422.0,0.00984232]
[1740408187025,0.15,95421.0,95407.0,0.05041007]
[1740408187245,0.15,95419.0,95408.0,0.01454085]
[1740408187457,0.15,95417.0,95410.0,0.01454085]
[1740408187671,0.15,95415.0,95410.0,0.01454085]
[1740408187878,0.15,95413.0,95410.0,0.01454085]
[1740408188087,0.15,95411.0,95410.0,0.01454085]
[1740408188307,2.199256,95411.0,95410.0,0.01454085]
[1740408188522,2.136556,95411.0,95410.0,0.01454085]
[1740408188735,2.136556,95411.0,95410.0,0.02914256]
[1740408189170,2.136556,95411.0,95410.0,0.01454085]
[1740408190053,2.14897811,95411.0,95410.0,0.01454085]
[1740408190258,2.14897811,95411.0,95409.0,0.08987625]
[1740408190259,0.157216,95410.0,95409.0,0.01177625]
[1740408190474,3.910148,95410.0,95409.0,0.01177625]
[1740408190687,3.910148,95410.0,95394.0,0.0819]
[1740408190688,0.1327,95401.0,95394.0,0.094135]
[1740408190911,3.752932,95400.0,95394.0,0.094135]
[1740408191137,3.910167,95399.0,95394.0,0.094135]
[1740408191353,0.156238,95397.0,95394.0,0.094135]
[1740408191559,0.209643,95400.0,95394.0,0.094135]
[1740408191767,0.1327,95401.0,95394.0,0.012235]
[1740408191768,0.15724,95396.0,95394.0,0.012235]
[1740408191980,3.299665,95395.0,95394.0,0.012235]
[1740408192230,3.299665,95395.0,95384.0,0.09769999]
[1740408192231,3.741724,95395.0,95384.0,0.0777]
[1740408192466,1.987233,95394.0,95387.0,0.01066457]
[1740408192670,1.987233,95394.0,95384.0,0.0777]
[1740408192671,0.15,95392.0,95385.0,0.01454085]
[1740408192883,0.15,95390.0,95385.0,0.01454085]
[1740408193093,0.394869,95389.0,95385.0,0.01454085]
[1740408193299,0.1332,95390.0,95385.0,0.01454085]
[1740408193533,0.144843,95389.0,95385.0,0.01454085]
[1740408193744,0.108122,95389.0,95385.0,0.01454085]
[1740408193960,0.536912,95389.0,95385.0,0.01454085]
[1740408195068,0.09218901,95388.0,95385.0,0.01454085]
[1740408195286,0.005,95390.0,95389.0,0.03454085]
[1740408195496,0.005,95390.0,95389.0,0.05454084]
[1740408195708,0.005,95390.0,95389.0,0.19762874]
[1740408196144,0.09293299,95396.0,95395.0,0.03999999]
[1740408196378,0.0142,95422.0,95418.0,0.09284085]
[1740408196615,0.15,95420.0,95418.0,0.13654085]
[1740408196828,1.583564,95419.0,95418.0,0.16404525]
[1740408197033,1.433564,95419.0,95418.0,0.16404525]
[1740408197246,1.284227,95419.0,95418.0,0.16304525]
[1740408197460,0.15,95419.0,95418.0,0.16304525]
[1740408197880,0.15,95419.0,95418.0,0.11634525]
[1740408198063,0.156,95419.0,95418.0,0.11634525]
[1740408198300,1.638254,95419.0,95418.0,0.11634525]
[1740408198511,1.751931,95419.0,95418.0,0.11634525]
[1740408198754,0.428215,95419.0,95418.0,0.13634525]
[1740408199206,0.428215,95419.0,95418.0,0.15634524]
[1740408199468,0.428215,95419.0,95418.0,0.13634524]
[1740408199709,0.428215,95419.0,95418.0,0.0275044]
[1740408199710,0.585416,95419.0,95418.0,0.0275044]
[1740408199963,0.428215,95419.0,95418.0,0.0275044]
[1740408200211,0.428215,95419.0,95415.0,0.01454085]
[1740408200212,0.15,95418.0,95415.0,0.01454085]
[1740408200472,1.854378,95418.0,95412.0,0.01999999]
[1740408200717,0.15,95416.0,95412.0,0.01999999]
[1740408200990,0.15,95414.0,95413.0,0.03454085]
[1740408201240,2.550847,95414.0,95412.0,0.01999999]
[1740408201482,1.909167,95413.0,95412.0,0.01999999]
[1740408201720,1.736394,95413.0,95412.0,0.03454084]
[1740408202198,1.581894,95413.0,95412.0,0.03454084]
[1740408202406,0.918334,95413.0,95412.0,0.06354359]
[1740408202683,0.918334,95413.0,95412.0,0.03454084]
[1740408202894,0.918334,95413.0,95412.0,0.0442518]
[1740408203106,0.918334,95413.0,95412.0,0.03454084]
[1740408203338,0.918334,95413.0,95412.0,0.0570795]
[1740408203551,0.918334,95413.0,95412.0,0.03454084]
[1740408203762,0.918334,95413.0,95412.0,0.06325751]
[1740408203986,0.923334,95413.0,95412.0,0.03454084]
[1740408204210,0.923334,95413.0,95412.0,0.06755424]
[1740408204432,0.923334,95413.0,95412.0,0.03454084]
[1740408204638,0.923334,95413.0,95412.0,0.05356706]
[1740408204852,0.155,95413.0,95412.0,0.05454084]
[1740408205112,0.304506,95413.0,95412.0,0.05454084]
[1740408205342,0.303506,95413.0,95412.0,0.08456622]
[1740408205570,0.25855,95413.0,95412.0,0.05454084]
[1740408205791,0.25855,95413.0,95412.0,0.07739425]
[1740408206004,0.149,95413.0,95412.0,0.07739425]
[1740408206212,0.29438,95413.0,95412.0,0.07739425]
[1740408206431,0.29638,95413.0,95412.0,0.07739425]
[1740408206688,0.29638,95413.0,95412.0,0.05739425]
[1740408207129,0.73188687,95413.0,95412.0,0.02285341]
[1740408207556,0.15,95410.0,95399.0,0.01454085]
[1740408207831,0.15,95408.0,95399.0,0.01454085]
[1740408208035,0.15,95406.0,95399.0,0.01454085]
[1740408208251,2.628862,95405.0,95398.0,0.08888936]
[1740408208472,3.07469887,95404.0,95398.0,0.01288936]
[1740408208679,0.604539,95403.0,95402.0,0.02]
[1740408208887,0.211488,95403.0,95402.0,0.01454085]
[1740408209102,0.211488,95403.0,95400.0,0.01999999]
[1740408209519,0.22785787,95404.0,95400.0,0.01999999]
[1740408210214,0.15,95403.0,95400.0,0.01999999]
[1740408210444,0.15,95403.0,95401.0,0.01454085]
[1740408210877,0.152,95403.0,95401.0,0.01454085]
[1740408211560,0.152,95403.0,95400.0,0.01999999]
[1740408211993,0.05710749,95403.0,95399.0,0.0008503]
[1740408212211,0.305032,95400.0,95399.0,0.0008503]
[1740408212418,0.15,95400.0,95399.0,0.0008503]
[1740408213232,0.307232,95400.0,95399.0,0.0008503]
[1740408214081,0.311232,95400.0,95399.0,0.0008503]
[1740408214314,0.55296987,95400.0,95399.0,0.0008503]
[1740408214754,0.54896987,95400.0,95399.0,0.0008503]
[1740408214999,0.55396987,95400.0,95399.0,0.0008503]
[1740408216400,0.54896987,95400.0,95399.0,0.0008503]
[1740408216543,0.50296987,95400.0,95399.0,0.0008503]
[1740408216744,0.50296987,95400.0,95399.0,0.02316237]
[1740408217359,1e-08,95381.0,95380.0,0.00058909]
[1740408217563,0.38512187,95381.0,95380.0,0.00058909]
[1740408217919,0.3390334,95381.0,95380.0,0.03386818]
[1740408218618,0.307264,95381.0,95380.0,0.03386818]
[1740408218845,0.273364,95381.0,95380.0,0.03430013]
[1740408219352,0.3259,95381.0,95380.0,0.03430013]
[1740408219577,0.4691308,95381.0,95380.0,0.0332791]
[1740408219795,0.4114308,95381.0,95380.0,0.0332791]
[1740408220262,0.4064308,95381.0,95380.0,0.0332791]
[1740408220462,0.3665308,95381.0,95380.0,0.0332791]
[1740408221156,0.1840868,95381.0,95380.0,0.03327909]
[1740408221390,0.1703668,95381.0,95351.0,0.02316442]
[1740408221601,0.1653668,95380.0,95351.0,0.02316442]
[1740408221814,0.1653668,95380.0,95375.0,0.01999999]
[1740408222021,0.1653668,95380.0,95377.0,0.01999999]
[1740408222241,0.1653668,95380.0,95376.0,0.0764]
[1740408222452,0.15,95379.0,95376.0,0.10452617]
[1740408222659,0.01444,95386.0,95376.0,0.10452617]
[1740408222938,0.13782404,95380.0,95376.0,0.10452617]
[1740408223141,0.224115,95386.0,95376.0,0.10452617]
[1740408223339,0.157262,95382.0,95380.0,0.0008505]
[1740408223518,0.209676,95385.0,95380.0,0.0008505]
[1740408223519,0.15726,95383.0,95380.0,0.0008505]
[1740408223744,0.01444,95388.0,95380.0,0.0008505]
[1740408223958,0.157254,95387.0,95380.0,0.0008505]
[1740408224190,0.0011495,95380.0,95376.0,0.10452617]
[1740408224841,0.0011495,95380.0,95379.0,0.02]
[1740408225064,0.0011495,95380.0,95379.0,0.05454084]
[1740408225308,0.0011495,95380.0,95379.0,0.10154084]
[1740408225541,0.0011495,95380.0,95379.0,0.13454953]
[1740408225776,0.0011495,95380.0,95379.0,0.10154084]
[1740408226004,0.0011495,95380.0,95379.0,0.13454953]
[1740408226662,0.16432,95402.0,95390.0,0.01999999]
[1740408226919,0.16432,95402.0,95390.0,0.01799999]
[1740408227375,0.09302628,95400.0,95399.0,0.03799999]
[1740408227843,0.09302628,95400.0,95399.0,0.019]
[1740408228074,0.09302628,95400.0,95397.0,0.019]
[1740408228326,0.09302628,95400.0,95399.0,0.01799999]
[1740408228531,0.157234,95399.0,95397.0,0.01799999]
[1740408228743,0.15,95398.0,95394.0,0.09078421]
[1740408229179,0.15,95395.0,95394.0,0.09078421]
[1740408229399,0.15,95395.0,95394.0,0.01228421]
[1740408229848,0.30266928,95400.0,95386.0,0.01484169]
[1740408229849,0.15,95387.0,95386.0,0.01484169]
[1740408230112,0.15,95387.0,95380.0,0.0492]
[1740408230113,0.307264,95381.0,95380.0,0.01114673]
[1740408230371,0.868884,95381.0,95380.0,0.00914673]
[1740408230631,0.157287,95367.0,95366.0,0.01659589]
[1740408230835,0.15,95360.0,95356.0,0.01799999]
[1740408231107,0.1369,95360.0,95359.0,0.03699999]
[1740408231570,0.015,95387.0,95372.0,0.019]
[1740408231818,0.0164289,95394.0,95372.0,0.019]
[1740408231819,0.01428,95379.0,95372.0,0.03699999]
[1740408232080,0.01428,95379.0,95373.0,0.01799999]
[1740408232290,0.01428,95379.0,95362.0,0.01799999]
[1740408232291,0.209691,95378.0,95362.0,0.01799999]
[1740408232503,0.01428,95379.0,95363.0,0.019]
[1740408232713,0.0051093,95377.0,95365.0,0.019]
[1740408232926,0.00510986,95378.0,95367.0,0.019]
[1740408233119,0.01893581,95376.0,95372.0,0.019]
[1740408233368,0.00516328,95377.0,95372.0,0.019]
[1740408233587,0.56162,95381.0,95372.0,0.019]
[1740408233808,0.55622,95381.0,95372.0,0.019]
[1740408234240,0.53552,95381.0,95372.0,0.019]
[1740408234464,0.157267,95379.0,95372.0,0.019]
[1740408235099,0.157265,95380.0,95372.0,0.019]
[1740408235325,0.692784,95381.0,95372.0,0.0198505]
[1740408235547,0.15,95379.0,95372.0,0.0198505]
[1740408235790,0.0996,95379.0,95372.0,0.0198505]
[1740408236456,0.692784,95381.0,95372.0,0.0198505]
[1740408236457,0.53552,95381.0,95372.0,0.0198505]
[1740408237174,0.53552,95381.0,95378.0,0.0809]
[1740408237624,0.53552,95381.0,95378.0,0.1134462]
[1740408237842,0.15,95380.0,95378.0,0.1134462]
[1740408238519,0.1325,95380.0,95378.0,0.1134462]
[1740408239138,0.1325,95380.0,95378.0,0.0325462]
[1740408239364,0.1325,95380.0,95376.0,0.01799999]
[1740408239576,0.157267,95379.0,95376.0,0.01699999]
[1740408239793,0.1325,95380.0,95376.0,0.01699999]
[1740408240417,0.001,95377.0,95376.0,0.01699999]
[1740408240652,0.15,95377.0,95376.0,0.01699999]
[1740408240851,0.307277,95373.0,95372.0,0.03266964]
[1740408241069,0.1161,95373.0,95372.0,0.03266964]
[1740408241273,0.1161,95373.0,95372.0,0.03194667]
[1740408241683,0.1033,95373.0,95372.0,0.03194667]
[1740408241902,0.1033,95373.0,95372.0,0.03096449]
[1740408242738,0.1033,95373.0,95372.0,0.0139645]
[1740408242947,0.157275,95374.0,95372.0,0.0139645]
[1740408243181,0.014,95381.0,95370.0,0.019]
[1740408243390,0.15727,95377.0,95376.0,0.01699999]
[1740408243599,0.01396,95394.0,95370.0,0.019]
[1740408243807,0.157275,95375.0,95370.0,0.019]
[1740408244016,0.0223609,95393.0,95374.0,0.01699999]
[1740408244192,0.157275,95374.0,95372.0,0.001]
[1740408244413,0.157274,95375.0,95372.0,0.001]
[1740408244607,0.144477,95373.0,95372.0,0.001]
[1740408244809,0.09984,95557.0,95376.0,0.01699999]
[1740408244810,0.2,95407.0,95376.0,0.01699999]
[1740408245013,0.15,95400.0,95376.0,0.01699999]
[1740408245358,0.15,95381.0,95376.0,0.03599999]
[1740408245560,0.15,95381.0,95379.0,0.019]
[1740408245811,0.15,95381.0,95380.0,0.09599999]
[1740408246188,0.1404,95381.0,95380.0,0.12472169]
[1740408246347,0.2998,95393.0,95380.0,0.14372169]
[1740408246348,0.20967,95388.0,95380.0,0.14372169]
[1740408246541,0.157249,95390.0,95382.0,0.01699999]
[1740408247037,0.209663,95391.0,95382.0,0.01699999]
[1740408247249,0.2998,95393.0,95383.0,0.019]
[1740408247463,0.123664,95381.0,95380.0,0.0287217]
[1740408247894,0.209661,95392.0,95370.0,0.09102894]
[1740408248077,0.195861,95392.0,95371.0,0.01699999]
[1740408248319,0.15,95374.0,95371.0,0.01699999]
[1740408248743,0.209693,95378.0,95371.0,0.01699999]
[1740408248985,0.157257,95385.0,95375.0,0.019]
[1740408249234,0.0017014,95381.0,95376.0,0.0813]
[1740408249759,0.1589654,95381.0,95376.0,0.11273258]
[1740408250034,0.0017014,95381.0,95376.0,0.11273258]
[1740408250291,0.15727,95377.0,95376.0,0.03143258]
[1740408250538,0.157267,95379.0,95376.0,0.03143258]
[1740408250840,0.209689,95379.0,95372.0,0.0198507]
[1740408251055,0.29504671,95373.0,95372.0,0.0008507]
[1740408251299,0.27154671,95373.0,95372.0,0.01785069]
[1740408251557,0.27074671,95373.0,95372.0,0.0008507]
[1740408252074,0.27074671,95373.0,95372.0,0.01785069]
[1740408252913,0.27074671,95373.0,95372.0,0.01885069]
[1740408253550,0.15,95373.0,95372.0,0.01885069]
[1740408253774,0.157277,95373.0,95372.0,0.01885069]
[1740408254461,0.157277,95373.0,95372.0,0.04810164]
[1740408254674,0.12594263,95373.0,95372.0,0.04810164]
[1740408255307,0.12594263,95373.0,95372.0,0.03110165]
[1740408255518,0.12594263,95373.0,95372.0,0.04810164]
[1740408256219,0.15,95374.0,95372.0,0.04810164]
[1740408256434,0.1362,95374.0,95372.0,0.06710164]
[1740408256646,0.1362,95374.0,95373.0,0.03599999]
[1740408256862,0.09317483,95379.0,95378.0,0.01699999]
[1740408257084,0.09317483,95379.0,95378.0,0.03599999]
[1740408257511,0.457062,95383.0,95378.0,0.03599999]
[1740408257764,0.457062,95383.0,95378.0,0.06003448]
[1740408257965,0.457062,95383.0,95378.0,0.03599999]
[1740408258179,0.457062,95383.0,95379.0,0.01699999]
[1740408258374,0.15,95382.0,95379.0,0.01699999]
[1740408259054,0.307263,95382.0,95379.0,0.01699999]
[1740408259529,0.0037014,95381.0,95379.0,0.01699999]
[1740408260263,0.15,95376.0,95373.0,0.09491889]
[1740408260494,0.307275,95374.0,95373.0,0.03291888]
[1740408260729,0.30710409,95374.0,95373.0,0.01591889]
[1740408260959,0.307277,95373.0,95372.0,0.01785069]
[1740408261197,0.307277,95373.0,95372.0,0.02922427]
[1740408261406,0.306277,95373.0,95372.0,0.02922427]
[1740408262048,0.272477,95373.0,95372.0,0.02922427]
[1740408262460,0.272477,95373.0,95372.0,0.01222428]
[1740408262688,0.552577,95373.0,95372.0,0.01222428]
[1740408263325,0.457077,95373.0,95372.0,0.01222428]
[1740408263779,0.424577,95373.0,95372.0,0.01222428]
[1740408264222,0.457077,95373.0,95372.0,0.01222428]
[1740408264424,0.403477,95373.0,95372.0,0.01222428]
[1740408265471,0.553477,95373.0,95372.0,0.01222428]
[1740408265686,0.553477,95373.0,95372.0,0.00100028]
[1740408266086,0.533577,95373.0,95372.0,2.8e-07]
[1740408266523,0.15,95352.0,95351.0,0.01368144]
[1740408266725,0.307311,95352.0,95351.0,1e-08]
[1740408266931,0.307311,95352.0,95351.0,0.02416542]
[1740408267337,0.15,95352.0,95351.0,0.06016541]
[1740408267749,0.15,95352.0,95351.0,0.04359849]
[1740408267949,0.1333,95352.0,95351.0,0.06059848]
[1740408268154,0.27657354,95352.0,95351.0,0.04159848]
[1740408268358,0.20974,95356.0,95351.0,0.06059848]
[1740408268570,0.15731,95353.0,95352.0,0.01699999]
[1740408268997,0.157311,95352.0,95351.0,0.02459849]
[1740408269202,0.157311,95352.0,95351.0,0.02559849]